fUSD/lending_fUSD_20240528
["ID","MTS","AMOUNT","RATE_DAILY","PERIOD"]
[328116210,1716883832384,-7263.79511308,0.000129,2]
[328116211,1716883832393,-222.91068318,0.000129,2]
[328116212,1716883832403,-230.53609246,0.0001299,2]
[328116213,1716883832412,-230.53609246,0.0001299,2]
[328116214,1716883832421,-230.53609246,0.0001299,2]
[328116215,1716883832432,-656.21528318,0.00012998,2]
[328116216,1716883832445,-258.2252207,0.00012998,2]
[328116217,1716883832454,-157.80898856,0.00012998,2]
[328116218,1716883832464,-155.0,0.00012998,2]
[328116219,1716883832475,-207.79137545,0.00012998,2]
[328116220,1716883832484,-1596.74818938,0.00012998,2]
[328116221,1716883832505,-423.8,0.00012998,2]
[328116246,1716883837992,-251.16883427,0.000129,2]
[328116247,1716883838004,-70.40641136,0.000129,2]
[328116248,1716883838014,-3997.38731864,0.00012998,2]
[328116249,1716883838051,-531.79482725,0.00012998,2]
[328116250,1716883838111,-43944.06966483,0.00012998,2]
[328116251,1716883838121,-792.28188247,0.00012998,2]
[328116252,1716883838130,-339.08721062,0.00012998,2]
[328116253,1716883838140,-454.67431915,0.00012998,2]
[328116254,1716883838149,-1359.91631518,0.00012999,2]
[328116255,1716883838159,-1189.89610996,0.00012999,2]
[328116256,1716883838168,-89484.07449783,0.00013,2]
[328116257,1716883838180,-293475.15340005,0.00013,2]
[328116258,1716883838191,-11540.00000002,0.00013,2]
[328116259,1716883838237,-3498.68,0.00013,2]
[328116260,1716883838248,-74124.49999995,0.00013,2]
[328116261,1716883838259,-71793.65955617,0.00013,2]
[328116262,1716883838270,-465.75464,0.00013,2]
[328116263,1716883838281,-357.72052,0.00013,2]
[328116264,1716883838295,-33911.23371242,0.00013,2]
[328116284,1716883840530,-4652.1431293,0.00013,2]
[328116285,1716883840542,-2500.0,0.00013,2]
[328116286,1716883840554,-25159.40638365,0.00013,2]
[328116287,1716883841035,-68019.64745988,0.00013,2]
[328116288,1716883841047,-634.20173141,0.00013,2]
[328116289,1716883841096,-2940.96388949,0.00013,2]
[328116290,1716883841158,-623.26266108,0.00013,2]
[328116291,1716883841170,-1374.33765998,0.00013,2]
[328116292,1716883841285,-334516.44516295,0.00013,2]
[328116298,1716883842771,-10000.0,0.00013,2]
[328116303,1716883843043,-31476.6702,0.00013,2]
[328116304,1716883843110,-9429.89813046,0.00013,2]
[328116305,1716883843121,-5999.65560004,0.00013,2]
[328116306,1716883843132,-5055.82601032,0.00013,2]
[328116307,1716883843143,-2951.52100116,0.00013,2]
[328116308,1716883843155,-1413.30546832,0.00013,2]
[328116309,1716883843167,-432.16,0.00013,2]
[328116310,1716883843178,-682.60369346,0.00013,2]
[328116311,1716883843189,-865.3,0.00013,2]
[328116312,1716883843234,-10000.0,0.00013,2]
[328116313,1716883843247,-22106.3684875,0.00013,2]
[328116314,1716883843408,-1117.94522106,0.00013,2]
[328116315,1716883844524,-10000.0,0.00013,2]
[328116316,1716883844554,-10000.0,0.00013,2]
[328116317,1716883844628,-10000.0,0.00013,2]
[328116327,1716883846027,-334.104,0.00013,2]
[328116328,1716883846144,-713878.76219883,0.00013,2]
[328116329,1716883846156,-278.60989433,0.00013,2]
[328116330,1716883846217,-1902.0,0.00013,2]
[328116331,1716883846340,-526.03433849,0.00013,2]
[328116332,1716883850280,-10000.0,0.00013,2]
[328116333,1716883850669,-10000.0,0.00013,2]
[328116334,1716883851037,-10000.0,0.00013,2]
[328116335,1716883851491,-10000.0,0.00013,2]
[328116336,1716883851806,-10000.0,0.00013,2]
[328116337,1716883853254,-10000.0,0.00013,2]
[328116338,1716883854029,-10000.0,0.00013,2]
[328116339,1716883854397,-10000.0,0.00013,2]
[328116340,1716883854706,-10000.0,0.00013,2]
[328116341,1716883855031,-10000.0,0.00013,2]
[328116342,1716883855385,-10000.0,0.00013,2]
[328116343,1716883855810,-10000.0,0.00013,2]
[328116344,1716883856171,-10000.0,0.00013,2]
[328116345,1716883856646,-10000.0,0.00013,2]
[328116347,1716883886252,500.0,9.75e-05,2]
[328116348,1716883886603,500.0,9.75e-05,2]
[328116349,1716883887155,720.0,9.75e-05,2]
[328116351,1716883909431,-4464.68893598,0.000129,2]
[328116352,1716883909457,-2538.31106402,0.0001299,2]
[328116362,1716884546284,184.13,0.00010594,2]
[328116363,1716884548035,150.0,0.000135,10]
[328116365,1716884629604,182.78,0.00014,10]
[328116376,1716885002360,970.07,0.00012986,14]
[328116384,1716885032241,-169.29,0.00012543,2]
[328116385,1716885032250,-460.81225962,0.00012634,2]
[328116386,1716885032325,-1812.45774038,0.00012634,2]
[328116387,1716885032335,-1319.96083577,0.00012818,2]
[328116388,1716885032347,-63.41916423,0.00012818,2]
[328116389,1716885032357,-285.58083577,0.00012886,2]
[328116390,1716885032369,-214.41916423,0.00012886,2]
[328116391,1716885032378,-2971.5223025,0.00012897,2]
[328116392,1716885032409,-6840.55040424,0.00012897,2]
[328116393,1716885032420,-9241.67438928,0.00012897,2]
[328116394,1716885032499,-792.5901174,0.00012897,2]
[328116395,1716885032510,-609.67999998,0.00012897,2]
[328116396,1716885032522,-10248.40092606,0.00012897,2]
[328116397,1716885032533,-1974.8225,0.00012897,2]
[328116398,1716885032544,-1572.87,0.00012897,2]
[328116399,1716885032558,-285.63156241,0.00012897,2]
[328116401,1716885038434,-487.04147501,0.00012897,2]
[328116402,1716885038447,-8331.18281185,0.00012897,2]
[328116403,1716885038456,-321.57524563,0.00012898,2]
[328116404,1716885038466,-1717.4198,0.00012898,2]
[328116405,1716885038476,-7164.7444,0.00012898,2]
[328116406,1716885038485,-1689.11216617,0.000129,2]
[328116407,1716885038496,-3131.6058681,0.00012989,2]
[328116408,1716885038505,-1853.1886339,0.00012989,2]
[328116409,1716885038515,-3453.4259986,0.00012991,2]
[328116410,1716885038524,-3775.246129,0.00012991,2]
[328116411,1716885038534,-1769.3053882,0.00012991,2]
[328116412,1716885038543,-1685.4221424,0.00012991,2]
[328116413,1716885038553,-1339.7,0.00012991,2]
[328116414,1716885038562,-103176.07141613,0.00012998,2]
[328116415,1716885038575,-5862.51986911,0.00012998,2]
[328116416,1716885039079,-994.47327256,0.00012998,2]
[328116417,1716885039255,-28595.34813619,0.00012998,2]
[328116418,1716885039268,-38816.59706,0.00012998,2]
[328116419,1716885039281,-33017.57440624,0.00012998,2]
[328116420,1716885039293,-40188.70718728,0.00012998,2]
[328116447,1716885040925,-255.471,0.00012989,2]
[328116448,1716885040938,-1483.802683,0.00012989,2]
[328116449,1716885040949,-1353.52134386,0.00012991,2]
[328116450,1716885041654,-573.82014394,0.00012991,2]
[328116451,1716885041664,-734.36415264,0.00012991,2]
[328116452,1716885041709,-1381.04513996,0.00012991,2]
[328116453,1716885041719,-386.18919336,0.00012998,2]
[328116454,1716885042009,-1348.37030117,0.00012998,2]
[328116455,1716885042020,-8035.40333089,0.00012998,2]
[328116456,1716885042032,-404.24487,0.00012998,2]
[328116462,1716885043308,-3104.25288954,0.00012998,2]
[328116463,1716885043320,-698.3039996,0.00012998,2]
[328116464,1716885043400,-298.72,0.00012998,2]
[328116465,1716885043412,-1358.52,0.00012998,2]
[328116466,1716885043423,-259.347326,0.00012998,2]
[328116467,1716885043522,-730.07140233,0.00012998,2]
[328116468,1716885043534,-652.62529538,0.00012998,2]
[328116469,1716885043545,-21986.72349107,0.00012998,2]
[328116470,1716885043639,-94120.6334275,0.00012998,2]
[328116471,1716885043649,-25713.261,0.00012998,2]
[328116472,1716885043658,-825.74,0.00012998,2]
[328116473,1716885043667,-150.99,0.00012998,2]
[328116474,1716885043676,-9999.99,0.00012998,2]
[328116475,1716885043692,-1897.83949895,0.00012998,2]
[328116476,1716885043706,-428.81754475,0.00012998,2]
[328116477,1716885043715,-52399.82852881,0.00013,2]
[328116478,1716885044535,-1620.87313189,0.00013,2]
[328116479,1716885044547,-613438.80936955,0.00013,2]
[328116482,1716885046282,-774.68725396,0.00013,2]
[328116483,1716885046395,-3230.612195,0.00013,2]
[328116484,1716885046494,-993.06454,0.00013,2]
[328116485,1716885046509,-25855.48418701,0.00013,2]
[328116486,1716885046657,-688.50492583,0.00013,2]
[328116487,1716885046669,-3939.10755086,0.00013,2]
[328116493,1716885222179,800.07,9.878e-05,2]
[328116494,1716885381795,7434.99,0.00011459,2]
[328116495,1716885398007,1665.88,0.00011326,2]
[328116496,1716885405744,208.96723113,0.00011325,2]
[328116497,1716885415630,2648.09313385,0.00011325,2]
[328116498,1716885417715,-155.0,0.00011664,2]
[328116499,1716885417738,-155.0,0.00011664,2]
[328116500,1716885417763,-3288.60966713,0.00011664,2]
[328116501,1716885417793,-687.1486291,0.00011665,2]
[328116502,1716885417823,-241.09339782,0.00011665,2]
[328116503,1716885417853,-3094.30559708,0.00011665,2]
[328116504,1716885417878,-162.25666852,0.00011666,2]
[328116505,1716885417905,-237.63610267,0.00011666,2]
[328116506,1716885417933,-166.16771595,0.00011666,2]
[328116507,1716885417960,-2189.24448954,0.00011667,2]
[328116508,1716885417991,-1382.70872343,0.00011668,2]
[328116509,1716885418020,-155.0,0.00011668,2]
[328116510,1716885418049,-624.3999277,0.00011669,2]
[328116511,1716885418080,-3012.27317988,0.00011669,2]
[328116512,1716885418107,-150.0,0.00011669,2]
[328116513,1716885418134,-150.0,0.00011669,2]
[328116514,1716885418161,-155.0,0.0001167,2]
[328116515,1716885418189,-344.9320909,0.0001167,2]
[328116516,1716885418216,-2225.38289457,0.00011672,2]
[328116517,1716885418244,-1706.36,0.00011674,2]
[328116518,1716885418269,-1789.74382833,0.00011676,2]
[328116519,1716885418295,-9999.99,0.00011676,2]
[328116520,1716885418323,-155.0,0.0001168,2]
[328116521,1716885418350,-200.0,0.00011682,2]
[328116522,1716885418379,-242.22,0.00011682,2]
[328116523,1716885418407,-499.99,0.00011682,2]
[328116524,1716885418434,-536.52210812,0.00011754,2]
[328116525,1716885418463,-500.0,0.00011755,2]
[328116526,1716885418493,-294.98,0.00011761,2]
[328116527,1716885418521,-294.98,0.00011793,2]
[328116528,1716885418547,-294.98,0.00011826,2]
[328116529,1716885418574,-463.04,0.00011836,2]
[328116530,1716885418603,-294.98,0.00011858,2]
[328116531,1716885418632,-294.98,0.0001189,2]
[328116532,1716885418661,-294.98,0.00011922,2]
[328116533,1716885418687,-294.98,0.00011955,2]
[328116534,1716885418712,-294.98,0.00011987,2]
[328116535,1716885419818,43355.96648873,0.00011668,2]
[328116536,1716885443969,-294.98,0.00012019,2]
[328116537,1716885444000,-180.95,0.0001205,2]
[328116538,1716885444027,-294.98,0.00012051,2]
[328116539,1716885444054,-294.98,0.00012084,2]
[328116540,1716885444083,-294.98,0.00012116,2]
[328116541,1716885444107,-800.07,0.00012142,2]
[328116542,1716885444132,-294.98,0.00012148,2]
[328116543,1716885444156,-294.98,0.0001218,2]
[328116544,1716885444179,-250.0,0.00012211,2]
[328116545,1716885444202,-499.99,0.00012213,2]
[328116546,1716885444226,-294.98,0.00012213,2]
[328116547,1716885444249,-250.0,0.00012233,2]
[328116548,1716885444273,-294.98,0.00012245,2]
[328116549,1716885444296,-294.98,0.00012277,2]
[328116550,1716885444323,-294.98,0.00012309,2]
[328116551,1716885444352,-294.98,0.00012342,2]
[328116552,1716885444377,-294.98,0.00012374,2]
[328116553,1716885444401,-402.61615402,0.00012719,2]
[328116554,1716885444426,-2604.67361667,0.00012726,2]
[328116555,1716885444449,-252.49288459,0.00012868,2]
[328116556,1716885444474,-3000.0,0.0001287,2]
[328116557,1716885444498,-174.37,0.00012885,2]
[328116558,1716885444523,-500.0,0.00012896,2]
[328116559,1716885444550,-2353.5473,0.00012898,2]
[328116560,1716885444575,-1000.0,0.00012898,2]
[328116561,1716885444599,-2166.6333,0.00012898,2]
[328116562,1716885444622,-24297.9447,0.00012898,2]
[328116563,1716885444648,-57726.95204472,0.00012898,2]
[328116564,1716885453340,-552.94,0.00012213,2]
[328116565,1716885453363,-19447.06,0.00012898,2]
[328116566,1716885469958,-96000.0,0.00012898,2]
[328116567,1716885509000,-166.16771595,0.00012896,2]
[328116568,1716885509025,-237.63610267,0.00012897,2]
[328116569,1716885509050,-162.25666852,0.00012897,2]
[328116570,1716885509074,-36733.93951286,0.00012898,2]
[328116571,1716885559842,184.11,0.00010237,2]
[328116572,1716885701674,720.06,0.00010515,2]
[328116585,1716886232707,-162.25666852,0.00011838,2]
[328116586,1716886232717,-150.0,0.00011839,2]
[328116588,1716886232727,-1017.02735921,0.00011851,2]
[328116590,1716886232738,-270.26587227,0.00011851,2]
[328116593,1716886232759,-327.25676852,0.00011851,2]
[328116594,1716886232767,-541.94823148,0.00011868,2]
[328116595,1716886232779,-397.82076205,0.00011868,2]
[328116596,1716886232791,-22960.23100647,0.00011868,2]
[328116597,1716886232800,-2997.61,0.00011878,2]
[328116598,1716886232810,-200.0,0.00011911,2]
[328116599,1716886232819,-250.0,0.00011975,2]
[328116600,1716886232828,-323.5,0.0001201,2]
[328116601,1716886232838,-2670.91,0.00012016,2]
[328116602,1716886232847,-629.56,0.00012036,2]
[328116603,1716886232856,-299.99,0.00012036,2]
[328116604,1716886232875,-9999.99,0.00012603,2]
[328116605,1716886232886,-150.0,0.00012603,2]
[328116606,1716886232895,-150.0,0.0001263,2]
[328116607,1716886232905,-150.0,0.00012659,2]
[328116608,1716886232914,-154.9,0.00012659,2]
[328116609,1716886232924,-1368.0,0.000127,2]
[328116610,1716886232934,-163.75,0.0001273,2]
[328116611,1716886232943,-150.0,0.00012747,2]
[328116612,1716886232953,-720.06,0.00012779,2]
[328116613,1716886232963,-150.0,0.00012788,2]
[328116614,1716886232973,-242.14432747,0.00012798,2]
[328116615,1716886232982,-885.64062119,0.00012798,2]
[328116616,1716886232995,-800.3641,0.00012798,2]
[328116617,1716886233005,-1000.0,0.00012798,2]
[328116618,1716886233014,-2343.36758848,0.00012799,2]
[328116619,1716886233024,-22560.96422817,0.000128,2]
[328116620,1716886233038,-368.36047548,0.000128,2]
[328116621,1716886233051,-1528.7,0.000128,2]
[328116623,1716886233062,-14772.11489635,0.000128,2]
[328116625,1716886233072,-3651.42998104,0.000128,2]
[328116627,1716886233084,-54598.52947075,0.000128,2]
[328116629,1716886233095,-369.95948262,0.000128,2]
[328116631,1716886233108,-467.5,0.000128,2]
[328116634,1716886233125,-275.53092191,0.000128,2]
[328116636,1716886233137,-4479.62168441,0.000128,2]
[328116639,1716886233148,-11378.62169086,0.000128,2]
[328116641,1716886233160,-1757.21922737,0.000128,2]
[328116643,1716886233171,-875.52271808,0.000128,2]
[328116645,1716886233183,-737.8305502,0.000128,2]
[328116648,1716886233194,-791.63952452,0.000128,2]
[328116650,1716886233206,-1299.4208445,0.000128,2]
[328116652,1716886233222,-600.0,0.000128,2]
[328116654,1716886233233,-1000.0,0.000128,2]
[328116656,1716886233247,-1146.95174,0.000128,2]
[328116658,1716886233259,-3300.0,0.000128,2]
[328116659,1716886233276,-6902.90000004,0.000128,2]
[328116664,1716886237547,-2348.40046312,0.000128,2]
[328116665,1716886237559,-3878.33618245,0.000128,2]
[328116666,1716886237699,-140.58551813,0.000128,2]
[328116667,1716886237709,-150.0,0.00012832,2]
[328116668,1716886237719,-2569.58337,0.0001287,2]
[328116669,1716886237729,-283.78584971,0.00012891,2]
[328116670,1716886237740,-216.21415029,0.00012891,2]
[328116671,1716886237751,-150.0,0.00012896,2]
[328116672,1716886237761,-7037.97199628,0.00012898,2]
[328116673,1716886237773,-1367.87917376,0.00012898,2]
[328116674,1716886237784,-450.09983867,0.00012898,2]
[328116675,1716886237811,-967.5007119,0.00012898,2]
[328116676,1716886237823,-1135.53216571,0.00012898,2]
[328116677,1716886237834,-450.89332225,0.00012898,2]
[328116678,1716886237846,-272.32466048,0.00012898,2]
[328116679,1716886237857,-324.95664198,0.00012898,2]
[328116680,1716886237868,-2330.71214622,0.00012898,2]
[328116682,1716886237887,-1651.32,0.00012898,2]
[328116684,1716886237899,-490.1733676,0.00012898,2]
[328116686,1716886237910,-18612.68441757,0.00012898,2]
[328116688,1716886237920,-5379.74,0.000129,2]
[328116689,1716886237929,-162.86481413,0.000129,2]
[328116691,1716886237941,-1187.04759326,0.000129,2]
[328116692,1716886237950,-1768.80583337,0.000129,2]
[328116693,1716886237960,-314.24896143,0.000129,2]
[328116694,1716886237969,-219.65240343,0.000129,2]
[328116695,1716886237978,-159.8102037,0.000129,2]
[328116696,1716886237987,-219.65240342,0.000129,2]
[328116699,1716886237998,-219.65240342,0.000129,2]
[328116702,1716886238007,-219.65240342,0.000129,2]
[328116705,1716886238017,-219.65240342,0.000129,2]
[328116706,1716886238026,-219.65240342,0.000129,2]
[328116707,1716886238035,-219.65240342,0.000129,2]
[328116708,1716886238045,-219.65240342,0.000129,2]
[328116709,1716886238054,-324.46411803,0.000129,2]
[328116710,1716886238064,-6323.78199228,0.000129,2]
[328116711,1716886238073,-8045.40502423,0.000129,2]
[328116712,1716886238083,-2497.39889573,0.00012986,2]
[328116713,1716886238092,-708.0970612,0.00012988,2]
[328116714,1716886238101,-7718.128758,0.00012988,2]
[328116715,1716886238111,-1688.262874,0.00012988,2]
[328116716,1716886238120,-564.42511793,0.0001299,2]
[328116717,1716886238129,-564.42511793,0.0001299,2]
[328116718,1716886238139,-564.42511793,0.0001299,2]
[328116719,1716886238148,-159.51,0.0001299,2]
[328116720,1716886238157,-159.51,0.0001299,2]
[328116721,1716886238167,-159.51,0.0001299,2]
[328116722,1716886238178,-159.51,0.0001299,2]
[328116723,1716886238187,-159.51,0.0001299,2]
[328116724,1716886238197,-159.51,0.0001299,2]
[328116725,1716886238206,-1000.0,0.00012991,2]
[328116726,1716886238218,-1000.0,0.00012991,2]
[328116727,1716886238227,-1000.0,0.00012991,2]
[328116728,1716886238237,-1000.0,0.00012991,2]
[328116729,1716886238247,-1000.0,0.00012991,2]
[328116730,1716886238257,-1000.0,0.00012991,2]
[328116731,1716886238267,-1000.0,0.00012991,2]
[328116732,1716886238277,-551.0,0.00012991,2]
[328116733,1716886238286,-923.1672171,0.00012991,2]
[328116734,1716886238299,-1138.2373731,0.00012991,2]
[328116735,1716886238309,-8636.1334863,0.00012991,2]
[328116736,1716886238318,-9554.1382145,0.00012991,2]
[328116737,1716886238328,-1898.2555083,0.00012991,2]
[328116738,1716886238337,-2108.2481427,0.00012991,2]
[328116739,1716886238347,-14623.88717505,0.00012997,2]
[328116740,1716886238357,-150.99,0.00012997,2]
[328116741,1716886238366,-4212.63801329,0.00012998,2]
[328116742,1716886238376,-255.08811511,0.00012998,2]
[328116743,1716886238387,-231.53054482,0.00012998,2]
[328116744,1716886238396,-155.65511597,0.00012998,2]
[328116745,1716886238405,-194.90807186,0.00012998,2]
[328116746,1716886238415,-155.82055899,0.00012998,2]
[328116747,1716886238425,-305.53903369,0.00012998,2]
[328116748,1716886238434,-789.86639451,0.00012998,2]
[328116749,1716886238444,-23506.27137631,0.00012998,2]
[328116750,1716886238453,-327.54250385,0.00012998,2]
[328116751,1716886238462,-206.3699626,0.00012998,2]
[328116752,1716886238472,-5456.75715038,0.00012998,2]
[328116753,1716886238482,-327.5137528,0.00012998,2]
[328116754,1716886238492,-392.86486179,0.00012998,2]
[328116755,1716886238503,-234.15716962,0.00012998,2]
[328116756,1716886238512,-155.63482021,0.00012998,2]
[328116757,1716886238521,-782.34085719,0.00012998,2]
[328116758,1716886238531,-1273.20131825,0.00012998,2]
[328116759,1716886238540,-159.44649709,0.00012998,2]
[328116760,1716886238550,-159.97832121,0.00012998,2]
[328116761,1716886238559,-205.03192926,0.00012998,2]
[328116762,1716886238569,-155.0,0.00012998,2]
[328116763,1716886238578,-1064.33887229,0.00012998,2]
[328116764,1716886238588,-155.30726672,0.00012998,2]
[328116765,1716886238597,-155.13894279,0.00012998,2]
[328116766,1716886238607,-2356.79859163,0.00012998,2]
[328116767,1716886238617,-525.01264179,0.00012998,2]
[328116768,1716886238626,-155.26323273,0.00012998,2]
[328116769,1716886238635,-155.48552461,0.00012998,2]
[328116770,1716886238645,-156.07241446,0.00012998,2]
[328116771,1716886238655,-156.40259508,0.00012998,2]
[328116772,1716886238664,-820.5593734,0.00012998,2]
[328116773,1716886238674,-155.0,0.00012998,2]
[328116774,1716886238683,-259.23567921,0.00012998,2]
[328116775,1716886238693,-818.92777564,0.00012998,2]
[328116776,1716886238702,-206.73568771,0.00012998,2]
[328116777,1716886238712,-789.59156933,0.00012998,2]
[328116778,1716886238721,-364.17738736,0.00012998,2]
[328116779,1716886238731,-711.54139824,0.00012998,2]
[328116780,1716886238740,-321.96055433,0.00012998,2]
[328116781,1716886238750,-157.30591297,0.00012998,2]
[328116782,1716886238759,-157.35021688,0.00012998,2]
[328116783,1716886238769,-255.20118883,0.00012998,2]
[328116784,1716886238779,-208.66858079,0.00012998,2]
[328116785,1716886238789,-2572.72644681,0.00012998,2]
[328116786,1716886238799,-440.02758746,0.00012998,2]
[328116787,1716886238808,-305.41449521,0.00012998,2]
[328116788,1716886238818,-280.63919406,0.00012998,2]
[328116789,1716886238827,-179.28826561,0.00012998,2]
[328116790,1716886238837,-6787.98884302,0.00012998,2]
[328116791,1716886238853,-2239.23924654,0.00012998,2]
[328116792,1716886238866,-155.65892591,0.00012998,2]
[328116793,1716886238875,-240.90993585,0.00012998,2]
[328116794,1716886238885,-155.0,0.00012998,2]
[328116795,1716886238895,-2183.05009866,0.00012998,2]
[328116796,1716886238904,-662.63064287,0.00012998,2]
[328116797,1716886238914,-168.67834765,0.00012998,2]
[328116798,1716886238923,-193.03417988,0.00012998,2]
[328116799,1716886238935,-1000.0,0.00012998,2]
[328116800,1716886238945,-1000.0,0.00012998,2]
[328116801,1716886238955,-1000.0,0.00012998,2]
[328116802,1716886238964,-1000.0,0.00012998,2]
[328116803,1716886238973,-1000.0,0.00012998,2]
[328116804,1716886238983,-1000.0,0.00012998,2]
[328116805,1716886238993,-1000.0,0.00012998,2]
[328116806,1716886239003,-1000.0,0.00012998,2]
[328116807,1716886239012,-1000.0,0.00012998,2]
[328116808,1716886239021,-1000.0,0.00012998,2]
[328116809,1716886239032,-1000.0,0.00012998,2]
[328116810,1716886239042,-168.06827952,0.00012999,2]
[328116811,1716886239051,-155.08486264,0.00012999,2]
[328116812,1716886239061,-266.60822412,0.00012999,2]
[328116813,1716886239071,-4281.53119452,0.00012999,2]
[328116814,1716886239081,-802574.46533111,0.00013,2]
[328116815,1716886239095,-253.67024202,0.00013,2]
[328116828,1716886240349,-199.79942975,0.000129,2]
[328116829,1716886240359,-17200.46827306,0.00013,2]
[328116830,1716886241207,-412.5831558,0.00013,2]
[328116831,1716886241266,-1915.25710201,0.00013,2]
[328116837,1716886242763,-17948.17886396,0.00013,2]
[328116838,1716886242778,-2994.66198669,0.00013,2]
[328116839,1716886242815,-1932.69733792,0.00013,2]
[328116840,1716886242826,-13975.11858889,0.00013,2]
[328116841,1716886242838,-664.89000024,0.00013,2]
[328116842,1716886243355,-6818.07163764,0.00013,2]
[328116848,1716886245498,-1346.7,0.00013,2]
[328116849,1716886245512,-324.95834368,0.00013,2]
[328116850,1716886245557,-856.20926424,0.00013,2]
[328116851,1716886245619,-2343.36758848,0.00013,2]
[328116852,1716886245794,-1771.57523962,0.00013,2]
[328116853,1716886245806,-1685.47391358,0.00013,2]
[328116854,1716886245859,-2032.8201485,0.00013,2]
[328116855,1716886245871,-2725.03742778,0.00013,2]
[328117011,1716886313161,700.87,0.00010536,2]
[328117016,1716886487235,2412.7373498,7.902e-05,2]
[328117018,1716886581219,829.36486409,5.927e-05,2]
[328117019,1716886624521,4904.58302623,7.902e-05,2]
[328117020,1716886768198,665.82,9.793e-05,2]
[328117021,1716886854746,23900.0,0.00011153,2]
[328117024,1716887062085,250.0,0.00011174,2]
[328117025,1716887085969,163.75,0.00011174,2]
[328117030,1716887246536,632.52,9.2e-05,2]
[328117031,1716887246770,632.52,0.00011464,2]
[328117036,1716887257239,250.0,0.00011171,2]
[328117037,1716887310582,150.0,0.00011329,2]
[328117039,1716887348020,1262.54,0.00011382,2]
[328117040,1716887355434,23900.0,0.00011433,2]
[328117046,1716887431722,-155.0,0.00011507,2]
[328117047,1716887431732,-489.49792713,0.00011508,2]
[328117048,1716887431741,-4282.56969523,0.00011508,2]
[328117049,1716887431751,-213.93434682,0.00011509,2]
[328117050,1716887431765,-322.5877613,0.00011509,2]
[328117051,1716887431774,-517.03487054,0.00011509,2]
[328117052,1716887431784,-164.58,0.0001151,2]
[328117053,1716887431793,-7526.23404168,0.00011525,2]
[328117054,1716887431803,-155.0,0.00011526,2]
[328117055,1716887431812,-3288.60966713,0.00011526,2]
[328117056,1716887431822,-406.61896149,0.00011527,2]
[328117057,1716887431831,-5570.7220395,0.00011527,2]
[328117058,1716887431840,-1382.70872343,0.00011528,2]
[328117059,1716887431850,-150.0,0.00011531,2]
[328117060,1716887431860,-164.58,0.00011585,2]
[328117061,1716887431870,-999.99,0.00011585,2]
[328117062,1716887431879,-150.99,0.00011585,2]
[328117063,1716887431888,-164.58,0.0001166,2]
[328117064,1716887431897,-299.99,0.00011713,2]
[328117065,1716887431907,-985.82,0.00011713,2]
[328117066,1716887431916,-4410.76083767,0.00011713,2]
[328117067,1716887431927,-2106.38916233,0.00011713,2]
[328117068,1716887431937,-6439.18736159,0.00011713,2]
[328117069,1716887431948,-5093.91263841,0.00011713,2]
[328117070,1716887431957,-3013.4,0.00011713,2]
[328117071,1716887431967,-403.68736179,0.00011713,2]
[328117072,1716887431990,-96.30263821,0.00011713,2]
[328117073,1716887432000,-150.99,0.00011717,2]
[328117074,1716887432010,-230.90298009,0.00011728,2]
[328117075,1716887432026,-924.78551991,0.00011728,2]
[328117076,1716887432035,-164.58,0.00011735,2]
[328117077,1716887432045,-168.22,0.00011761,2]
[328117078,1716887432054,-164.58,0.0001181,2]
[328117079,1716887432063,-690.01526941,0.00011829,2]
[328117080,1716887432075,-309.98473059,0.00011829,2]
[328117081,1716887432084,-164.58,0.00011884,2]
[328117082,1716887432093,-12.13805944,0.00011959,2]
[328117083,1716887432104,-152.44194056,0.00011959,2]
[328117084,1716887432113,-164.58,0.00012034,2]
[328117085,1716887432123,-164.58,0.00012109,2]
[328117086,1716887432133,-178.47,0.00012561,2]
[328117087,1716887432142,-210.0,0.00012684,2]